lending/lending_fUSD_20250315
["ID","MTS","AMOUNT","RATE_DAILY","PERIOD"]
[356191669,1742053895846,-581.89944964,0.00044931,120]
[356191670,1742053895856,-677.93,0.00044931,120]
[356191671,1742053895866,-500.0,0.00044931,120]
[356191672,1742053895876,-500.0,0.00044931,120]
[356191673,1742053895885,-500.0,0.00044931,120]
[356191674,1742053895894,-500.0,0.00044931,120]
[356191675,1742053895904,-500.0,0.00044931,120]
[356191676,1742053895913,-500.0,0.00044931,120]
[356191677,1742053895923,-682.77,0.00044931,120]
[356191678,1742053895932,-500.0,0.00044931,120]
[356191679,1742053895942,-500.0,0.00044931,120]
[356191680,1742053895951,-500.0,0.00044931,120]
[356191681,1742053895960,-500.0,0.00044931,120]
[356191682,1742053895970,-500.0,0.00044931,120]
[356191683,1742053895979,-1796.68,0.00044931,120]
[356191684,1742053895989,-500.0,0.00044931,120]
[356191685,1742053895998,-500.0,0.00044931,120]
[356191686,1742053896008,-693.76,0.00044931,120]
[356191687,1742053896017,-327.50364893,0.00044931,120]
[356191688,1742053896027,-578.44,0.00044931,120]
[356191689,1742053896036,-802.0,0.00044931,120]
[356191690,1742053896047,-500.0,0.00044931,120]
[356191691,1742053896057,-500.0,0.00044931,120]
[356191692,1742053896066,-500.0,0.00044931,120]
[356191693,1742053896076,-596.92,0.00044931,120]
[356191694,1742053896085,-500.0,0.00044931,120]
[356191695,1742053896095,-500.0,0.00044931,120]
[356191696,1742053896104,-500.0,0.00044931,120]
[356191697,1742053896114,-500.0,0.00044931,120]
[356191698,1742053896123,-500.0,0.00044931,120]
[356191699,1742053896134,-926.94,0.00044931,120]
[356191700,1742053896145,-500.0,0.00044931,120]
[356191701,1742053896156,-500.0,0.00044931,120]
[356191702,1742053896166,-1230.06,0.00044931,120]
[356191703,1742053896175,-500.0,0.00044931,120]
[356191704,1742053896186,-500.0,0.00044931,120]
[356191705,1742053896195,-500.0,0.00044931,120]
[356191706,1742053896205,-500.0,0.00044931,120]
[356191707,1742053896215,-534.58,0.00044931,120]
[356191708,1742053896224,-500.0,0.00044931,120]
[356191709,1742053896234,-500.0,0.00044931,120]
[356191710,1742053896243,-500.0,0.00044931,120]
[356191711,1742053896253,-500.0,0.00044931,120]
[356191712,1742053896263,-921.45,0.00044931,120]
[356191713,1742053896273,-500.0,0.00044931,120]
[356191714,1742053896283,-500.0,0.00044931,120]
[356191715,1742053896294,-1727.43,0.00044931,120]
[356191716,1742053896303,-500.0,0.00044931,120]
[356191717,1742053896314,-500.0,0.00044931,120]
[356191718,1742053896323,-500.0,0.00044931,120]
[356191719,1742053896332,-599.91,0.00044931,120]
[356191720,1742053896341,-500.0,0.00044931,120]
[356191721,1742053896351,-871.26,0.00044931,120]
[356191722,1742053896361,-502.07137913,0.00044931,120]
[356191723,1742053896378,-500.0,0.00044931,120]
[356191724,1742053896388,-500.0,0.00044931,120]
[356191725,1742053896398,-500.0,0.00044931,120]
[356191726,1742053896408,-500.0,0.00044931,120]
[356191727,1742053896418,-1169.75,0.00044931,120]
[356191728,1742053896427,-500.0,0.00044931,120]
[356191729,1742053896439,-2429.22,0.00044931,120]
[356191730,1742053896449,-176.48155886,0.00044931,120]
[356191731,1742053896460,-500.0,0.00044931,120]
[356191732,1742053896470,-500.0,0.00044931,120]
[356191733,1742053896480,-500.0,0.00044931,120]
[356191734,1742053896490,-500.0,0.00044931,120]
[356191735,1742053896499,-500.0,0.00044931,120]
[356191736,1742053896509,-987.03,0.00044931,120]
[356191737,1742053896518,-500.0,0.00044931,120]
[356191738,1742053896527,-500.0,0.00044931,120]
[356191739,1742053896537,-500.0,0.00044931,120]
[356191740,1742053896547,-514.89964484,0.00044931,120]
[356191741,1742053896557,-500.0,0.00044931,120]
[356191742,1742053896567,-500.0,0.00044931,120]
[356191743,1742053896578,-500.0,0.00044931,120]
[356191744,1742053896589,-500.0,0.00044931,120]
[356191745,1742053896599,-1720.16,0.00044931,120]
[356191746,1742053896609,-1938.15,0.00044931,120]
[356191747,1742053896622,-502.12278502,0.00044931,120]
[356191748,1742053896632,-500.0,0.00044931,120]
[356191749,1742053896642,-1928.15,0.00044931,120]
[356191750,1742053896652,-993.96,0.00044931,120]
[356191751,1742053896663,-500.0,0.00044931,120]
[356191752,1742053896672,-992.83,0.00044931,120]
[356191753,1742053896683,-524.09479257,0.00044931,120]
[356191754,1742053896693,-555.32,0.00044931,120]
[356191755,1742053896703,-303.24648198,0.00044931,120]
[356191756,1742053896712,-433.06267692,0.00044931,120]
[356191757,1742053896721,-715.78,0.00044931,120]
[356191758,1742053896731,-637.28,0.00044931,120]
[356191759,1742053896740,-500.0,0.00044931,120]
[356191760,1742053896750,-2182.86,0.00044931,120]
[356191761,1742053896759,-532.44,0.00044931,120]
[356191762,1742053896769,-500.0,0.00044931,120]
[356191763,1742053896779,-500.0,0.00044931,120]
[356191764,1742053896788,-500.0,0.00044931,120]
[356191765,1742053896798,-912.39,0.00044931,120]
[356191766,1742053896807,-500.0,0.00044931,120]
[356191767,1742053896816,-569.88,0.00044931,120]
[356191768,1742053896826,-859.69,0.00044931,120]
[356191769,1742053896835,-500.0,0.00044931,120]
[356191770,1742053896845,-556.06,0.00044931,120]
[356191771,1742053896855,-948.57,0.00044931,120]
[356191772,1742053896864,-500.0,0.00044931,2]
[356191773,1742053896874,-1103.3,0.00044931,120]
[356191774,1742053896884,-500.0,0.00044931,120]
[356191775,1742053896893,-329.15437821,0.00044931,120]
[356191776,1742053896902,-656.59,0.00044931,120]
[356191777,1742053896912,-500.0,0.00044931,120]
[356191778,1742053896921,-500.0,0.00044931,120]
[356191779,1742053896931,-500.0,0.00044931,120]
[356191780,1742053896941,-500.0,0.00044931,120]
[356191781,1742053896951,-500.0,0.00044931,120]
[356191782,1742053896960,-500.0,0.00044931,120]
[356191783,1742053896970,-500.0,0.00044931,120]
[356191784,1742053896979,-500.0,0.00044931,120]
[356191785,1742053896990,-500.0,0.00044931,120]
[356191786,1742053897001,-500.0,0.00044931,120]
[356191787,1742053897011,-501.79904955,0.00044931,120]
[356191788,1742053897021,-500.0,0.00044931,120]
[356191789,1742053897031,-500.0,0.00044931,120]
[356191790,1742053897042,-500.0,0.00044931,30]
[356191791,1742053897052,-502.89320231,0.00044931,120]
[356191792,1742053897062,-532.03,0.00044931,120]
[356191793,1742053897072,-505.45497735,0.00044931,120]
[356191794,1742053897081,-1098.21,0.00044931,120]
[356191795,1742053897090,-500.0,0.00044931,120]
[356191796,1742053897099,-500.0,0.00044931,120]
[356191797,1742053897109,-515.66,0.00044931,120]
[356191798,1742053897118,-1036.04,0.00044931,120]
[356191799,1742053897128,-726.2,0.00044931,120]
[356191800,1742053897137,-572.55,0.00044931,120]
[356191801,1742053897146,-500.0,0.00044931,120]
[356191802,1742053897155,-500.0,0.00044931,120]
[356191803,1742053897164,-500.0,0.00044931,120]
[356191804,1742053897174,-500.0,0.00044931,120]
[356191805,1742053897184,-500.0,0.00044931,120]
[356191806,1742053897194,-712.94,0.00044931,120]
[356191807,1742053897204,-985.7,0.00044931,120]
[356191808,1742053897213,-803.99,0.00044931,120]
[356191809,1742053897222,-603.89,0.00044931,120]
[356191810,1742053897232,-642.88,0.00044931,120]
[356191811,1742053897242,-500.0,0.00044931,120]
[356191812,1742053897252,-500.0,0.00044931,120]
[356191813,1742053897261,-1000.0,0.00044931,120]
[356191814,1742053897271,-500.0,0.00044931,120]
[356191815,1742053897281,-500.0,0.00044931,120]
[356191816,1742053897292,-1082.44,0.00044931,120]
[356191817,1742053897302,-500.0,0.00044931,120]
[356191818,1742053897313,-500.0,0.00044931,120]
[356191819,1742053897323,-852.49,0.00044931,120]
[356191820,1742053897333,-500.0,0.00044931,120]
[356191821,1742053897343,-500.0,0.00044931,30]
[356191822,1742053897353,-500.0,0.00044931,120]
[356191823,1742053897362,-500.0,0.00044931,120]
[356191824,1742053897372,-1445.08,0.00044931,120]
[356191825,1742053897382,-838.66,0.00044931,120]
[356191826,1742053897392,-677.04,0.00044931,120]
[356191827,1742053897401,-500.0,0.00044931,120]
[356191828,1742053897411,-500.0,0.00044931,120]
[356191829,1742053897420,-500.0,0.00044931,120]
[356191830,1742053897430,-1041.27,0.00044931,120]
[356191831,1742053897440,-500.0,0.00044931,120]
[356191832,1742053897450,-588.87,0.00044931,120]
[356191833,1742053897459,-500.0,0.00044931,120]
[356191834,1742053897469,-500.0,0.00044931,120]
[356191835,1742053897479,-1178.25,0.00044931,120]
[356191836,1742053897488,-500.0,0.00044931,120]
[356191837,1742053897497,-565.24,0.00044931,120]
[356191838,1742053897507,-685.5,0.00044931,120]
[356191839,1742053897516,-500.0,0.00044931,120]
[356191840,1742053897527,-1358.72,0.00044931,120]
[356191841,1742053897537,-619.82,0.00044931,120]
[356191842,1742053897547,-500.0,0.00044931,120]
[356191843,1742053897556,-500.0,0.00044931,120]
[356191844,1742053897566,-689.79,0.00044931,120]
[356191845,1742053897576,-500.0,0.00044931,120]
[356191846,1742053897586,-1072.25,0.00044931,120]
[356191847,1742053897596,-500.0,0.00044931,120]
[356191848,1742053897605,-500.0,0.00044931,120]
[356191849,1742053897617,-500.0,0.00044931,120]
[356191850,1742053897627,-500.0,0.00044931,120]
[356191851,1742053897636,-500.0,0.00044931,120]
[356191852,1742053897645,-500.0,0.00044931,120]
[356191853,1742053897655,-500.0,0.00044931,120]
[356191854,1742053897666,-500.0,0.00044931,120]
[356191855,1742053897676,-548.23,0.00044931,120]
[356191856,1742053897686,-500.0,0.00044931,120]
[356191857,1742053897697,-500.0,0.00044931,120]
[356191858,1742053897707,-711.2,0.00044931,120]
[356191859,1742053897716,-1400.82,0.00044931,120]
[356191860,1742053897725,-500.0,0.00044931,120]
[356191861,1742053897734,-500.0,0.00044931,120]
[356191862,1742053897743,-500.0,0.00044931,120]
[356191863,1742053897751,-500.0,0.00044931,120]
[356191864,1742053897762,-500.0,0.00044931,120]
[356191865,1742053897772,-814.96,0.00044931,120]
[356191866,1742053897783,-601.09,0.00044931,120]
[356191867,1742053897793,-1944.92,0.00044931,120]
[356191868,1742053897803,-500.0,0.00044931,120]
[356191869,1742053897812,-646.5599432,0.00044931,120]
[356191870,1742053897822,-1078.55,0.00044931,120]
[356191871,1742053897831,-769.89,0.00044931,120]
[356191872,1742053897841,-500.0,0.00044931,120]
[356191873,1742053897851,-627.07,0.00044931,120]
[356191874,1742053897861,-501.4733826,0.00044931,120]
[356191875,1742053897870,-500.0,0.00044931,120]
[356191876,1742053897880,-500.0,0.00044931,120]
[356191877,1742053897889,-1362.1,0.00044931,120]
[356191878,1742053897899,-500.0,0.00044931,120]
[356191879,1742053897909,-500.0,0.00044931,120]
[356191880,1742053897919,-302.61131156,0.00044931,120]
[356191881,1742053897929,-500.0,0.00044931,120]
[356191882,1742053897938,-500.0,0.00044931,120]
[356191883,1742053897948,-886.33,0.00044931,120]
[356191884,1742053897958,-500.0,0.00044931,120]
[356191885,1742053897968,-500.0,0.00044931,120]
[356191886,1742053897978,-500.0,0.00044931,120]
[356191887,1742053897987,-535.68,0.00044931,120]
[356191888,1742053897997,-1042.42,0.00044931,120]
[356191889,1742053898007,-4177.15,0.00044931,120]
[356191890,1742053898017,-500.0,0.00044931,120]
[356191891,1742053898028,-500.0,0.00044931,120]
[356191892,1742053898038,-849.57,0.00044931,120]
[356191893,1742053898048,-500.0,0.00044931,120]
[356191894,1742053898059,-500.0,0.00044931,120]
[356191895,1742053898070,-568.88,0.00044931,120]
[356191896,1742053898079,-500.0,0.00044931,120]
[356191897,1742053898089,-551.17,0.00044931,120]
[356191898,1742053898098,-721.79,0.00044931,120]
[356191899,1742053898108,-500.0,0.00044931,120]
[356191900,1742053898118,-500.0,0.00044931,120]
[356191901,1742053898127,-530.36,0.00044931,120]
[356191902,1742053898137,-500.0,0.00044931,120]
[356191903,1742053898147,-505.57102322,0.00044931,120]
[356191904,1742053898157,-735.67,0.00044931,120]
[356191905,1742053898167,-1080.83,0.00044931,120]
[356191906,1742053898177,-517.56221389,0.00044931,120]
[356191907,1742053898186,-500.0,0.00044931,120]
[356191908,1742053898196,-541.66,0.00044931,120]
[356191909,1742053898206,-500.0,0.00044931,120]
[356191910,1742053898217,-539.2,0.00044931,120]
[356191911,1742053898226,-500.0,0.00044931,120]
[356191912,1742053898236,-500.0,0.00044931,120]
[356191913,1742053898246,-500.0,0.00044931,120]
[356191914,1742053898256,-1417.21,0.00044931,120]
[356191915,1742053898266,-1311.78,0.00044931,120]
[356191916,1742053898276,-3875.75,0.00044931,120]
[356191917,1742053898285,-500.0,0.00044931,120]
[356191918,1742053898295,-1108.73,0.00044931,120]
[356191919,1742053898304,-500.0,0.00044931,120]
[356191920,1742053898314,-973.66,0.00044931,120]
[356191921,1742053898323,-500.0,0.00044931,120]
[356191922,1742053898333,-500.0,0.00044931,120]
[356191923,1742053898343,-500.0,0.00044931,120]
[356191924,1742053898352,-1185.5,0.00044931,120]
[356191925,1742053898362,-500.0,0.00044931,120]
[356191926,1742053898371,-1185.63,0.00044931,120]
[356191927,1742053898381,-775.97,0.00044931,120]
[356191928,1742053898391,-500.0,0.00044931,120]
[356191929,1742053898400,-861.38,0.00044931,120]
[356191930,1742053898410,-500.0,0.00044931,120]
[356191931,1742053898606,-500.0,0.00044931,120]
[356191932,1742053898619,-500.0,0.00044931,120]
[356191933,1742053898628,-500.0,0.00044931,120]
[356191934,1742053898638,-1156.91,0.00044931,120]
[356191935,1742053898647,-158.18280389,0.00044931,120]
[356191936,1742053898658,-512.20250868,0.00044931,120]
[356191937,1742053898668,-500.0,0.00044931,120]
[356191938,1742053898678,-500.0,0.00044931,120]
[356191939,1742053898689,-500.0,0.00044931,120]
[356191940,1742053898699,-561.56,0.00044931,120]
[356191941,1742053898709,-887.11,0.00044931,120]
[356191942,1742053898718,-500.0,0.00044931,120]
[356191943,1742053898729,-1007.49,0.00044931,120]
[356191944,1742053898740,-530.33458893,0.00044931,120]
[356191945,1742053898751,-500.0,0.00044931,120]
[356191946,1742053898762,-500.0,0.00044931,120]
[356191947,1742053898773,-500.0,0.00044931,120]
[356191948,1742053898783,-500.0,0.00044931,120]
[356191949,1742053898794,-620.75,0.00044931,120]
[356191950,1742053898804,-500.0,0.00044931,120]
[356191951,1742053898814,-589.11,0.00044931,120]
[356191952,1742053898824,-626.63,0.00044931,120]
[356191953,1742053898834,-500.0,0.00044931,120]
[356191954,1742053898844,-500.0,0.00044931,120]
[356191955,1742053898854,-500.0,0.00044931,120]
[356191956,1742053898864,-500.0,0.00044931,120]
[356191957,1742053898875,-500.0,0.00044931,120]
[356191958,1742053898885,-608.9,0.00044931,120]
[356191959,1742053898895,-500.0,0.00044931,120]
[356191960,1742053898905,-500.0,0.00044931,120]
[356191961,1742053898916,-651.54,0.00044931,120]
[356191962,1742053898926,-1075.99,0.00044931,120]
[356191963,1742053898937,-500.0,0.00044931,120]
[356191964,1742053898947,-500.0,0.00044931,120]
[356191965,1742053898957,-500.0,0.00044931,120]
[356191966,1742053898967,-500.0,0.00044931,120]
[356191967,1742053898977,-587.95,0.00044931,120]
[356191968,1742053898987,-520.97,0.00044931,120]
[356191969,1742053898996,-500.0,0.00044931,120]
[356191970,1742053899007,-689.44,0.00044931,120]
[356191971,1742053899017,-656.92,0.00044931,120]
[356191972,1742053899027,-766.74,0.00044931,120]
[356191973,1742053899038,-500.0,0.00044931,120]
[356191974,1742053899049,-512.07437529,0.00044931,120]
[356191975,1742053899060,-506.08,0.00044931,120]
[356191976,1742053899070,-612.67,0.00044931,120]
[356191977,1742053899081,-500.0,0.00044931,120]
[356191978,1742053899091,-2035.5,0.00044931,120]
[356191979,1742053899100,-501.78901378,0.00044931,120]
[356191980,1742053899110,-1143.35,0.00044931,120]
[356191981,1742053899120,-500.0,0.00044931,120]
[356191982,1742053899130,-500.0,0.00044931,120]
[356191983,1742053899139,-500.0,0.00044931,120]
[356191984,1742053899149,-500.0,0.00044931,120]
[356191985,1742053899159,-500.0,0.00044931,120]
[356191986,1742053899169,-500.0,0.00044931,120]
[356191987,1742053899178,-509.29044707,0.00044931,120]
[356191988,1742053899187,-797.83,0.00044931,120]
[356191989,1742053899197,-758.7,0.00044931,120]
[356191990,1742053899207,-500.0,0.00044931,120]
[356191991,1742053899216,-500.0,0.00044931,120]
[356191992,1742053899226,-577.61054534,0.00044931,120]
[356191993,1742053899236,-500.0,0.00044931,120]
[356191994,1742053899246,-500.0,0.00044931,120]
[356191995,1742053899255,-500.0,0.00044931,120]
[356191996,1742053899264,-500.0,0.00044931,120]
[356191997,1742053899271,-1150.14,0.00044931,120]
[356191998,1742053899280,-510.54359908,0.00044931,120]
[356191999,1742053899288,-500.0,0.00044931,120]
[356192000,1742053899296,-604.13519388,0.00044931,120]
[356192001,1742053899306,-500.0,0.00044931,120]
[356192002,1742053899315,-813.1,0.00044931,120]
[356192003,1742053899325,-500.0,0.00044931,120]
[356192004,1742053899334,-500.0,0.00044931,120]
[356192005,1742053899344,-500.0,0.00044931,120]
[356192006,1742053899354,-500.0,0.00044931,120]
[356192007,1742053899363,-500.0,0.00044931,120]
[356192008,1742053899373,-500.0,0.00044931,120]
[356192009,1742053899383,-500.0,0.00044931,120]
[356192010,1742053899393,-626.61,0.00044931,120]
[356192011,1742053899402,-620.62,0.00044931,120]
[356192012,1742053899411,-500.0,0.00044931,14]
[356192013,1742053899421,-500.0,0.00044931,120]
[356192014,1742053899430,-753.36,0.00044931,120]
[356192015,1742053899439,-500.0,0.00044931,120]
[356192016,1742053899448,-2527.04,0.00044931,120]
[356192017,1742053899457,-500.0,0.00044931,120]
[356192018,1742053899466,-500.0,0.00044931,120]
[356192019,1742053899475,-500.0,0.00044931,120]
[356192020,1742053899484,-500.0,0.00044931,120]
[356192021,1742053899493,-749.59,0.00044931,120]
[356192022,1742053899502,-500.0,0.00044931,120]
[356192023,1742053899512,-500.0,0.00044931,120]
[356192024,1742053899522,-500.0,0.00044931,120]
[356192025,1742053899532,-500.0,0.00044931,120]
[356192026,1742053899541,-500.0,0.00044931,120]
[356192027,1742053899551,-500.0,0.00044931,120]
[356192028,1742053899560,-500.0,0.00044931,120]
[356192029,1742053899570,-503.95323938,0.00044931,120]
[356192030,1742053899579,-500.0,0.00044931,120]
[356192031,1742053899589,-500.0,0.00044931,120]
[356192032,1742053899599,-500.0,0.00044931,120]
[356192033,1742053899609,-531.99,0.00044931,120]
[356192034,1742053899625,-1446.97,0.00044931,120]
[356192035,1742053899634,-500.0,0.00044931,120]
[356192036,1742053899644,-500.0,0.00044931,120]
[356192037,1742053899655,-500.0,0.00044931,120]
[356192038,1742053899665,-500.0,0.00044931,120]
[356192039,1742053899675,-500.0,0.00044931,120]
[356192040,1742053899685,-500.0,0.00044931,120]
[356192041,1742053899696,-2052.71,0.00044931,120]
[356192042,1742053899706,-996.96,0.00044931,120]
[356192043,1742053899716,-523.18,0.00044931,120]
[356192044,1742053899726,-500.0,0.00044931,120]
[356192045,1742053899736,-500.0,0.00044931,120]
[356192046,1742053899746,-500.0,0.00044931,120]
[356192047,1742053899756,-641.35,0.00044931,120]
[356192048,1742053899767,-500.0,0.00044931,120]
[356192049,1742053899776,-500.0,0.00044931,120]
[356192050,1742053899786,-500.0,0.00044931,120]
[356192051,1742053899795,-1032.89,0.00044931,120]
[356192052,1742053899805,-500.0,0.00044931,120]
[356192053,1742053899815,-500.0,0.00044931,120]
[356192054,1742053899824,-753.77,0.00044931,120]
[356192055,1742053899834,-500.0,0.00044931,120]
[356192056,1742053899844,-500.0,0.00044931,120]
[356192057,1742053899854,-500.0,0.00044931,120]
[356192058,1742053899864,-500.0,0.00044931,120]
[356192059,1742053899874,-648.9,0.00044931,120]
[356192060,1742053899884,-500.0,0.00044931,120]
[356192061,1742053899894,-502.86184682,0.00044931,120]
[356192062,1742053899905,-500.0,0.00044931,120]
[356192063,1742053899915,-500.0,0.00044931,120]
[356192064,1742053899924,-1273.12,0.00044931,120]
[356192065,1742053899934,-610.46,0.00044931,120]
[356192066,1742053899943,-500.0,0.00044931,120]
[356192067,1742053899952,-500.0,0.00044931,120]
[356192068,1742053899962,-500.0,0.00044931,120]
[356192069,1742053899971,-1171.76,0.00044931,120]
[356192070,1742053899981,-650.39,0.00044931,120]
[356192071,1742053899990,-577.87736973,0.00044931,120]
[356192072,1742053899999,-500.0,0.00044931,120]
[356192073,1742053900009,-500.0,0.00044931,120]
[356192074,1742053900018,-530.76,0.00044931,120]
[356192075,1742053900029,-500.0,0.00044931,120]
[356192076,1742053900040,-500.0,0.00044931,120]
[356192077,1742053900049,-500.0,0.00044931,120]
[356192078,1742053900060,-500.0,0.00044931,120]
[356192079,1742053900071,-500.0,0.00044931,120]
[356192080,1742053900082,-500.0,0.00044931,120]
[356192081,1742053900091,-500.0,0.00044931,120]
[356192082,1742053900101,-1479.89,0.00044931,120]
[356192083,1742053900112,-500.0,0.00044931,120]
[356192084,1742053900121,-1199.91221762,0.00044931,120]
[356192110,1742055031723,-250.0,0.00019,2]
[356192111,1742055031734,-180.703,0.00020146,2]
[356192112,1742055031743,-175.61291717,0.00020146,2]
[356192113,1742055031840,-79.48608283,0.00020146,2]
[356192114,1742055031851,-171.168,0.00020146,2]
[356192115,1742055031861,-250.34536735,0.00021,2]
[356192116,1742055031956,-49.65463265,0.00021,2]
[356192117,1742055031967,-350.0,0.00023,2]
[356192118,1742055031978,-307.422684,0.00025209,2]
[356192119,1742055031993,-146.117316,0.00025209,2]
[356192120,1742055032003,-483.88182614,0.00026849,2]
[356192121,1742055032015,-159.30817386,0.00026849,2]
[356192122,1742055032027,-158.07,0.00027181,30]
[356192123,1742055032036,-453.54,0.00027472,2]
[356192124,1742055032046,-453.54,0.00029736,2]
[356192125,1742055032057,-453.54,0.00032,2]
[356192126,1742055032066,-158.07,0.00032107,30]
[356192127,1742055032076,-643.19,0.00032646,2]
[356192129,1742055032085,-453.54,0.00034264,2]
[356192130,1742055032095,-400.0,0.00035251,2]
[356192131,1742055032104,-1139.45182614,0.00035442,20]
[356192132,1742055032125,-216.54817386,0.00035442,20]
[356192133,1742055032135,-1344.5454,0.00035776,7]
[356192134,1742055032146,-151.0,0.0003579,7]
[356192135,1742055032155,-150.99,0.0003579,2]
[356192136,1742055032164,-400.0,0.00035807,2]
[356192137,1742055032174,-1355.09546072,0.00035808,20]
[356192138,1742055032187,-0.90453928,0.00035808,20]
[356192139,1742055032197,-2161.17752997,0.0003585,2]
[356192205,1742055039636,-251.7355,0.0003585,2]
[356192246,1742056019547,-297.05605156,9.88e-05,2]
[356192247,1742056025414,-166.03096226,9.879e-05,2]
[356192249,1742056049750,-133.96903774,9.879e-05,2]
[356192250,1742056049773,-16.03096226,9.88e-05,2]
[356192280,1742056231691,-200.0,9.831e-05,2]
[356192282,1742056231702,-150.0,9.879e-05,2]
[356192283,1742056231711,-6.19529874,9.879e-05,2]
[356192284,1742056231878,-188.52926422,9.879e-05,2]
[356192285,1742056231888,-5437.98590147,9.879e-05,2]
[356192286,1742056231902,-741.66842505,9.879e-05,2]
[356192287,1742056232058,-2232.82259904,9.879e-05,2]
[356192288,1742056232070,-822.0057805,9.879e-05,2]
[356192289,1742056232082,-1932.53847926,9.879e-05,2]
[356192290,1742056232095,-540.3519349,9.879e-05,2]
[356192291,1742056232153,-563.52987417,9.879e-05,2]
[356192292,1742056232164,-250.46748683,9.879e-05,2]
[356192293,1742056232176,-441.8349804,9.879e-05,2]
[356192294,1742056232189,-551.07319303,9.879e-05,2]
[356192295,1742056232201,-2450.000002,9.879e-05,2]
[356192296,1742056232213,-322.83442247,9.879e-05,2]
[356192297,1742056232224,-1322.22029579,9.879e-05,2]
[356192298,1742056232236,-2214.29664657,9.879e-05,2]
[356192300,1742056232252,-1479.26177975,9.879e-05,2]
[356192457,1742056237661,-207.07215295,9.878e-05,2]
[356192459,1742056237671,-500.0,9.878e-05,2]
[356192461,1742056237680,-204.23401544,9.878e-05,2]
[356192463,1742056237691,-338.02840517,9.878e-05,2]
[356192465,1742056237702,-500.0,9.878e-05,2]
[356192468,1742056237713,-386.05721036,9.878e-05,2]
[356192470,1742056237723,-45.77073279,9.878e-05,2]
[356192472,1742056237735,-454.22926721,9.878e-05,2]
[356192474,1742056237746,-1745.51573279,9.879e-05,2]
[356192476,1742056237761,-286.85471901,9.879e-05,2]
[356192479,1742056237776,-278.1174902,9.879e-05,2]
[356192481,1742056237788,-268.25522138,9.879e-05,2]
[356192487,1742056237887,-2052.78549733,9.879e-05,2]
[356192569,1742056239914,-6387.23637631,9.879e-05,2]
[356192571,1742056239926,-3071.32839809,9.879e-05,2]
[356192657,1742056242626,-96640.713735,9.879e-05,2]
[356192658,1742056242637,-297.82867182,9.879e-05,2]
[356192659,1742056242649,-775.5981233,9.879e-05,2]
[356192664,1742056242742,-1215.72589904,9.879e-05,2]
[356192670,1742056242859,-0.00389107,9.879e-05,2]
[356192671,1742056242870,-1294.80855547,9.879e-05,2]
[356192672,1742056242881,-397.08635398,9.879e-05,2]
[356192673,1742056242892,-23435.02649999,9.879e-05,2]
[356192674,1742056242911,-3846.78455,9.879e-05,2]
[356192675,1742056242922,-3197.54513101,9.879e-05,2]
[356192676,1742056242933,-505.19714107,9.879e-05,2]
[356192677,1742056242945,-838.48,9.879e-05,2]
[356192678,1742056242957,-181103.05541631,9.879e-05,2]
[356192680,1742056242968,-910.65117093,9.879e-05,2]
[356192683,1742056242987,-19136.58343315,9.879e-05,2]
[356192685,1742056242996,-150.0,9.88e-05,2]